Department Family,Entity,Date,Expenses Type,Expense Area,Supplier, Transaction Number ,  Total  
Department of Health,The Christie NHS Foundation Trust,24/02/2022,Palatine,Capital,A COPELAND GROUP LTD, 0000686802 ," 24,722.06 "
Department of Health,The Christie NHS Foundation Trust,24/02/2022,Consultancy Fees - January 2022,Capital,AIRE LOGIC LIMITED, 0000687034 ," 61,095.00 "
Department of Health,The Christie NHS Foundation Trust,03/02/2022,PET Scans Dec 21,Christie Medical Physics,ALLIANCE MEDICAL LTD, 0000684935 ," 176,580.00 "
Department of Health,The Christie NHS Foundation Trust,17/02/2022,PET Scans Dec 21,Christie Medical Physics,ALLIANCE MEDICAL LTD, 0000686204 ," 66,000.00 "
Department of Health,The Christie NHS Foundation Trust,17/02/2022,Drugs,Christie Medical Physics,ALLIANCE MEDICAL RADIOPHARMACY LIMITED, 0000683452 ," 36,270.00 "
Department of Health,The Christie NHS Foundation Trust,10/02/2022,Drugs,Christie Medical Physics,ALLIANCE MEDICAL RADIOPHARMACY LIMITED, 0000686160 ," 38,844.00 "
Department of Health,The Christie NHS Foundation Trust,17/02/2022,Project Management Fee,Capital,ARCADIS LLP, 0000685138 ," 58,536.00 "
Department of Health,The Christie NHS Foundation Trust,24/02/2022,Project Management Fee,Capital,ARCADIS LLP, 0000685987 ," 48,466.92 "
Department of Health,The Christie NHS Foundation Trust,03/02/2022,Drugs,Drugs,BAXTER HEALTHCARE LTD, 0000684841 ," 92,885.82 "
Department of Health,The Christie NHS Foundation Trust,03/02/2022,Drugs,Drugs,BAXTER HEALTHCARE LTD, 0000684843 ," 85,448.00 "
Department of Health,The Christie NHS Foundation Trust,03/02/2022,Drugs,Drugs,BAXTER HEALTHCARE LTD, 0000684845 ," 102,250.90 "
Department of Health,The Christie NHS Foundation Trust,03/02/2022,Drugs,Drugs,BAXTER HEALTHCARE LTD, 0000684949 ," 82,325.90 "
Department of Health,The Christie NHS Foundation Trust,03/02/2022,Drugs,Drugs,BAXTER HEALTHCARE LTD, 0000684950 ," 32,054.00 "
Department of Health,The Christie NHS Foundation Trust,03/02/2022,Drugs,Drugs,BAXTER HEALTHCARE LTD, 0000685466 ," 117,847.12 "
Department of Health,The Christie NHS Foundation Trust,10/02/2022,Drugs,Drugs,BAXTER HEALTHCARE LTD, 0000685473 ," 69,409.27 "
Department of Health,The Christie NHS Foundation Trust,10/02/2022,Drugs,Drugs,BAXTER HEALTHCARE LTD, 0000685479 ," 46,966.60 "
Department of Health,The Christie NHS Foundation Trust,10/02/2022,Drugs,Drugs,BAXTER HEALTHCARE LTD, 0000685494 ," 122,828.32 "
Department of Health,The Christie NHS Foundation Trust,10/02/2022,Drugs,Drugs,BAXTER HEALTHCARE LTD, 0000685610 ," 90,876.82 "
Department of Health,The Christie NHS Foundation Trust,10/02/2022,Drugs,Drugs,BAXTER HEALTHCARE LTD, 0000686075 ," 87,257.22 "
Department of Health,The Christie NHS Foundation Trust,17/02/2022,Drugs,Drugs,BAXTER HEALTHCARE LTD, 0000686077 ," 61,992.96 "
Department of Health,The Christie NHS Foundation Trust,17/02/2022,Drugs,Drugs,BAXTER HEALTHCARE LTD, 0000686080 ," 59,914.40 "
Department of Health,The Christie NHS Foundation Trust,17/02/2022,Drugs,Drugs,BAXTER HEALTHCARE LTD, 0000686105 ," 82,204.27 "
Department of Health,The Christie NHS Foundation Trust,17/02/2022,Drugs,Drugs,BAXTER HEALTHCARE LTD, 0000686255 ," 82,108.04 "
Department of Health,The Christie NHS Foundation Trust,24/02/2022,Drugs,Drugs,BAXTER HEALTHCARE LTD, 0000686605 ," 67,327.19 "
Department of Health,The Christie NHS Foundation Trust,24/02/2022,Drugs,Drugs,BAXTER HEALTHCARE LTD, 0000686607 ," 78,788.71 "
Department of Health,The Christie NHS Foundation Trust,24/02/2022,Drugs,Drugs,BAXTER HEALTHCARE LTD, 0000686610 ," 98,337.60 "
Department of Health,The Christie NHS Foundation Trust,24/02/2022,Drugs,Drugs,BAXTER HEALTHCARE LTD, 0000686632 ," 106,868.94 "
Department of Health,The Christie NHS Foundation Trust,24/02/2022,Drugs,Drugs,BAXTER HEALTHCARE LTD, 0000686794 ," 70,602.02 "
Department of Health,The Christie NHS Foundation Trust,24/02/2022,Drugs,Drugs,BAXTER HEALTHCARE LTD, 0000686797 ," 358,148.40 "
Department of Health,The Christie NHS Foundation Trust,24/02/2022,Drugs,Drugs,BAXTER HEALTHCARE LTD, 0000687098 ," 83,756.17 "
Department of Health,The Christie NHS Foundation Trust,03/02/2022,Facilities Management Services - 2019 additional fee,Christie Pathology Partner,CPP FACILITIES LLP, 0000682255 ," 20,919.14 "
Department of Health,The Christie NHS Foundation Trust,17/02/2022,Facilities Management Services - December 2021,Christie Pathology Partner,CPP FACILITIES LLP, 0000685949 ," 235,383.58 "
Department of Health,The Christie NHS Foundation Trust,07/02/2022,Rates,Estates & Facilities,DD M/CR CITY COUNCIL (RATES), 0000687184 ," 75,489.00 "
Department of Health,The Christie NHS Foundation Trust,17/02/2022,Blood Products,Network Services,DD NHS BLOOD AND TRANSPLANT, 0000685528 ," 160,265.00 "
Department of Health,The Christie NHS Foundation Trust,10/02/2022,Drugs,Drugs,EAST CHESHIRE NHS TRUST, 0000683352 ," 128,368.87 "
Department of Health,The Christie NHS Foundation Trust,03/02/2022,Electricity Invoice - November 2021,Network Services,EDF ENERGY, 0000686503 ," 89,130.75 "
Department of Health,The Christie NHS Foundation Trust,03/02/2022,Electricity Invoice - December 2021,Network Services,EDF ENERGY, 0000686508 ," 88,674.38 "
Department of Health,The Christie NHS Foundation Trust,17/02/2022,Electrictiy invoice - January 2022,Network Services,EDF ENERGY, 0000687036 ," 90,991.29 "
Department of Health,The Christie NHS Foundation Trust,03/02/2022,Medical Equipment,Network Services,GILEAD SCIENCES LTD, 0000654128 ," 224,360.80 "
Department of Health,The Christie NHS Foundation Trust,03/02/2022,Medical Equipment,Network Services,GILEAD SCIENCES LTD, 0000685177 ," 316,118.00 "
Department of Health,The Christie NHS Foundation Trust,10/02/2022,External Audit Fees ,Finance & Business Developmentent,GRANT THORNTON UK LLP, 0000686871 ," 27,000.00 "
Department of Health,The Christie NHS Foundation Trust,17/02/2022,Digital services,Manchester Cancer,GREATER MANCHESTER COMBINED AUTHORITY, 0000683808 ," 81,105.95 "
Department of Health,The Christie NHS Foundation Trust,03/02/2022,Drugs,Drugs,HEALTHCARE AT HOME LTD, 0000686123 ," 35,385.00 "
Department of Health,The Christie NHS Foundation Trust,17/02/2022,Drugs,Drugs,HEALTHCARE AT HOME LTD, 0000686638 ," 33,294.00 "
Department of Health,The Christie NHS Foundation Trust,24/02/2022,Drugs,Drugs,HEALTHCARE AT HOME LTD, 0000687852 ," 29,783.00 "
Department of Health,The Christie NHS Foundation Trust,17/02/2022,Drugs,Drugs,HEALTHCARE AT HOME LTD, 0000687888 ," 46,464.00 "
Department of Health,The Christie NHS Foundation Trust,03/02/2022,Paterson Redevelopment Project Works,Capital,INTEGRATED HEALTH PROJECTS, 0000686455 ," 4,392,279.78 "
Department of Health,The Christie NHS Foundation Trust,03/02/2022,Computer Software Support,Capital,INTOUCH WITH HEALTH LIMITED, 0000677820 ," 34,800.00 "
Department of Health,The Christie NHS Foundation Trust,17/02/2022,Audit Assurance Plan Q3 2021/22,Finance & Business Developmentent,LIVERPOOL UNIVERSITY HOSPITALS NHS FT, 0000686378 ," 25,933.66 "
Department of Health,The Christie NHS Foundation Trust,03/02/2022,Q3 Imagine Diagnostics / Anaesthetics / Cardiac MR & CT,Clinical Support & Specialist Surgery,MANCHESTER UNIVERSITY NHS FT, 0000684031 ," 569,929.00 "
Department of Health,The Christie NHS Foundation Trust,03/02/2022,NIHR-ARC Funding Oct 2020 to Sept 2021,Research & Innovation,MANCHESTER UNIVERSITY NHS FT, 0000684546 ," 50,000.00 "
Department of Health,The Christie NHS Foundation Trust,17/02/2022,Drugs,Drugs,MID CHESHIRE HOSPITALS NHS FT, 0000682430 ," 187,492.74 "
Department of Health,The Christie NHS Foundation Trust,10/02/2022,Service Charge of Macmilan Centre - January 2022,Network Services,MID CHESHIRE HOSPITALS NHS FT, 0000684842 ," 53,506.00 "
Department of Health,The Christie NHS Foundation Trust,24/02/2022,Service Charge of Macmilan Centre - February 2022,Network Services,MID CHESHIRE HOSPITALS NHS FT, 0000686600 ," 53,506.00 "
Department of Health,The Christie NHS Foundation Trust,10/02/2022,Blood Products,Network Services,NHS BLOOD AND TRANSPLANT, 0000685532 ," 28,346.66 "
Department of Health,The Christie NHS Foundation Trust,24/02/2022,All Wards & Departments ,The Christie NHS FT Balance,NHS SUPPLY CHAIN, 0000687717 ," 54,997.32 "
Department of Health,The Christie NHS Foundation Trust,24/02/2022,All Wards & Departments ,The Christie NHS FT Balance,NHS SUPPLY CHAIN, 0000687718 ," 58,427.57 "
Department of Health,The Christie NHS Foundation Trust,24/02/2022,All Wards & Departments ,The Christie NHS FT Balance,NHS SUPPLY CHAIN, 0000687719 ," 96,078.61 "
Department of Health,The Christie NHS Foundation Trust,24/02/2022,All Wards & Departments ,The Christie NHS FT Balance,NHS SUPPLY CHAIN, 0000687720 ," 85,818.11 "
Department of Health,The Christie NHS Foundation Trust,24/02/2022,Healthcare software implementation,Manchester Cancer,NORTHERN CARE ALLIANCE NHS FT, 0000687890 ," 30,000.00 "
Department of Health,The Christie NHS Foundation Trust,24/02/2022,Salford Fixed SLA - Rental of Building - February 2022,Estates & Facilities,NORTHERN CARE ALLIANCE NHS FT, 0000687891 ," 25,974.91 "
Department of Health,The Christie NHS Foundation Trust,24/02/2022,Medical Equipment,Network Services,ONCOLOGY SYSTEMS LIMITED, 0000684924 ," 29,312.00 "
Department of Health,The Christie NHS Foundation Trust,01/02/2022,Medical Equipment,Clinical Support & Specialist Surgery,RAND S.P.A, 0000685666 ," 27,445.65 "
Department of Health,The Christie NHS Foundation Trust,17/02/2022,Month 10 Chemotherapy SLA Invoice,Network Services,STOCKPORT NHS FOUNDATION TRUST, 0000685990 ," 31,073.00 "
Department of Health,The Christie NHS Foundation Trust,10/02/2022,System Support maintenance - February 2022,Digital Services,SYSTEM C HEALTHCARE, 0000685555 ," 23,362.71 "
Department of Health,The Christie NHS Foundation Trust,10/02/2022,Drugs,Drugs,TAMESIDE AND GLOSSOP INTEGRATED CARE NHS, 0000679550 ," 120,396.26 "
Department of Health,The Christie NHS Foundation Trust,17/02/2022,Drugs,Drugs,TAMESIDE AND GLOSSOP INTEGRATED CARE NHS, 0000682010 ," 91,837.71 "
Department of Health,The Christie NHS Foundation Trust,10/02/2022,Drugs,Drugs,TAMESIDE AND GLOSSOP INTEGRATED CARE NHS, 0000684016 ," 94,482.18 "
Department of Health,The Christie NHS Foundation Trust,17/02/2022,Blood Products,Network Services,TAMESIDE AND GLOSSOP INTEGRATED CARE NHS, 0000684033 ," 29,529.00 "
Department of Health,The Christie NHS Foundation Trust,03/02/2022,NHS Patients Fee,Other Income Levies and Grants,THE CHRISTIE CLINIC (HCA), 0000684473 ," 179,617.93 "
Department of Health,The Christie NHS Foundation Trust,03/02/2022,NHS Patients Fee,Other Income Levies and Grants,THE CHRISTIE CLINIC (HCA), 0000685599 ," 145,402.00 "
Department of Health,The Christie NHS Foundation Trust,24/02/2022,NHS Patients Fee,Other Income Levies and Grants,THE CHRISTIE CLINIC (HCA),0000687684," 168,985.00 "
Department of Health,The Christie NHS Foundation Trust,03/02/2022,Pathology Testing Services - December 2021,Christie Pathology Partner,THE CHRISTIE PATHOLOGY PARTNERSHIP LLP,0000682254," 44,018.38 "
Department of Health,The Christie NHS Foundation Trust,17/02/2022,Pathology Testing Services - December 2021,Christie Pathology Partner,THE CHRISTIE PATHOLOGY PARTNERSHIP LLP,0000685942," 495,297.60 "
Department of Health,The Christie NHS Foundation Trust,10/02/2022,Clinical Trials Expenditure,Research & Innovation,UNIVERSITY OF LIVERPOOL,0000685733," 66,012.83 "
Department of Health,The Christie NHS Foundation Trust,10/02/2022,Medical Services,Manchester Cancer,VIADUCT CARE CIC,0000687281," 42,000.00 "
Department of Health,The Christie NHS Foundation Trust,17/02/2022,Energy Bill,Estates & Facilities,VITAL ENERGI SOLUTIONS LTD,0000685853," 455,777.94 "
Department of Health,The Christie NHS Foundation Trust,24/02/2022,Christie CEF Construction Works,Capital,VITAL ENERGI SOLUTIONS LTD,0000686870," 425,197.25 "
Department of Health,The Christie NHS Foundation Trust,24/02/2022,Managed Digital services fee 2022,Capital,WIFI SPARK,0000686492," 22,237.56 "
